[Event "Titled Tuesday Blitz January 17 Early 2023"]
[White "Gareyev, Timur"]
[Black "Naroditsky, Daniel"]
[WhiteFideId "14200937"]
[BlackFideId "2026961"]
[WhiteElo "2617"]
[BlackElo "2618"]
[Result "0-1"]
[Round "07"]
[TimeControl "180+2"]
[Date "2023.01.17"]
[WhiteClock "0:00:05"]
[BlackClock "0:01:35"]

1. d4 {[%clk 0:02:41]}  Nf6 {[%clk 0:02:54]} 2. c4 {[%clk 0:02:35]}  g6 {[%clk 0:02:55]} 3. Nc3 {[%clk 0:02:35]}  Bg7 {[%clk 0:02:55]} 4. e4 {[%clk 0:02:35]}  d6 {[%clk 0:02:56]} 5. Be2 {[%clk 0:02:35]}  O-O {[%clk 0:02:56]} 6. Bg5 {[%clk 0:02:34]}  c5 {[%clk 0:02:53]} 7. d5 {[%clk 0:02:33]}  h6 {[%clk 0:02:53]} 8. Bf4 {[%clk 0:02:33]}  Re8 {[%clk 0:02:44]} 9. Nf3 {[%clk 0:02:31]}  e6 {[%clk 0:02:45]} 10. Nd2 {[%clk 0:02:29]}  exd5 {[%clk 0:02:41]} 11. cxd5 {[%clk 0:02:27]}  Na6 {[%clk 0:02:29]} 12. O-O {[%clk 0:02:21]}  Nc7 {[%clk 0:02:29]} 13. a4 {[%clk 0:02:15]}  b6 {[%clk 0:02:25]} 14. Re1 {[%clk 0:02:10]}  Ba6 {[%clk 0:02:19]} 15. Bxa6 {[%clk 0:02:10]}  Nxa6 {[%clk 0:02:20]} 16. Nb5 {[%clk 0:02:10]}  Bf8 {[%clk 0:02:21]} 17. Nc4 {[%clk 0:01:47]}  Nxe4 {[%clk 0:02:15]} 18. Qd3 {[%clk 0:01:34]}  Nb4 {[%clk 0:02:14]} 19. Qf3 {[%clk 0:01:27]}  f5 {[%clk 0:02:13]} 20. Qb3 {[%clk 0:01:18]}  a6 {[%clk 0:02:01]} 21. Nc3 {[%clk 0:01:18]}  Qf6 {[%clk 0:02:01]} 22. Rad1 {[%clk 0:01:09]}  Nd3 {[%clk 0:01:38]} 23. Rxd3 {[%clk 0:00:59]}  Nxc3 {[%clk 0:01:38]} 24. Rde3 {[%clk 0:00:26]}  Rxe3 {[%clk 0:01:36]} 25. Bxe3 {[%clk 0:00:18]}  Ne4 {[%clk 0:01:34]} 26. Qxb6 {[%clk 0:00:17]}  Re8 {[%clk 0:01:35]} 27. Qxa6 {[%clk 0:00:16]}  f4 {[%clk 0:01:34]} 28. Bc1 {[%clk 0:00:16]}  Qd4 {[%clk 0:01:35]} 29. Rf1 {[%clk 0:00:05]}  Nxf2 {[%clk 0:01:35]} 0-1


[Site "https://www.chess.com"]

[Event "Titled Tuesday Blitz January 17 Early 2023"]
[White "Duda, Jan-Krzysztof"]
[Black "Ozen, Bahadir"]
[WhiteFideId "1170546"]
[BlackFideId "6337058"]
[WhiteElo "2724"]
[BlackElo "2369"]
[Result "1-0"]
[Round "07"]
[TimeControl "180+2"]
[Date "2023.01.17"]
[WhiteClock "0:00:03"]
[BlackClock "0:00:03"]

1. b3 {[%clk 0:02:48]}  b6 {[%clk 0:02:56]} 2. Bb2 {[%clk 0:02:49]}  Bb7 {[%clk 0:02:56]} 3. d4 {[%clk 0:02:46]}  e6 {[%clk 0:02:51]} 4. Nc3 {[%clk 0:02:41]}  Nf6 {[%clk 0:02:47]} 5. f3 {[%clk 0:02:41]}  d5 {[%clk 0:02:37]} 6. Qd2 {[%clk 0:02:41]}  c5 {[%clk 0:02:31]} 7. e3 {[%clk 0:02:41]}  Nc6 {[%clk 0:02:28]} 8. g4 {[%clk 0:02:40]}  Rc8 {[%clk 0:02:19]} 9. g5 {[%clk 0:02:21]}  Nh5 {[%clk 0:01:58]} 10. f4 {[%clk 0:02:05]}  cxd4 {[%clk 0:01:58]} 11. exd4 {[%clk 0:02:05]}  Bd6 {[%clk 0:01:55]} 12. Nh3 {[%clk 0:01:49]}  g6 {[%clk 0:01:38]} 13. O-O-O {[%clk 0:01:41]}  a6 {[%clk 0:01:35]} 14. Kb1 {[%clk 0:01:32]}  Qc7 {[%clk 0:01:33]} 15. Qe2 {[%clk 0:01:15]}  Ne7 {[%clk 0:01:17]} 16. Na4 {[%clk 0:01:04]}  Nf5 {[%clk 0:01:09]} 17. Nc5 {[%clk 0:00:55]}  O-O {[%clk 0:00:35]} 18. Nd3 {[%clk 0:00:48]}  a5 {[%clk 0:00:35]} 19. Qd2 {[%clk 0:00:30]}  a4 {[%clk 0:00:35]} 20. Be2 {[%clk 0:00:29]}  Nhg7 {[%clk 0:00:27]} 21. Nhf2 {[%clk 0:00:25]}  Ba6 {[%clk 0:00:24]} 22. Rc1 {[%clk 0:00:23]}  Qa7 {[%clk 0:00:20]} 23. Ng4 {[%clk 0:00:19]}  Ra8 {[%clk 0:00:19]} 24. Ba1 {[%clk 0:00:11]}  Rfc8 {[%clk 0:00:15]} 25. Nf6+ {[%clk 0:00:10]}  Kh8 {[%clk 0:00:15]} 26. h4 {[%clk 0:00:09]}  Ng3 {[%clk 0:00:12]} 27. h5 {[%clk 0:00:10]}  Nxh1 {[%clk 0:00:10]} 28. Rxh1 {[%clk 0:00:07]}  gxh5 {[%clk 0:00:03]} 29. f5 {[%clk 0:00:04]}  axb3 {[%clk 0:00:02]} 30. cxb3 {[%clk 0:00:04]}  Bb5 {[%clk 0:00:02]} 31. g6 {[%clk 0:00:03]}  fxg6 {[%clk 0:00:02]} 32. fxg6 {[%clk 0:00:04]}  Nf5 {[%clk 0:00:02]} 33. Rxh5 {[%clk 0:00:03]}  Rc7 {[%clk 0:00:02]} 34. a4 {[%clk 0:00:02]}  Ba6 {[%clk 0:00:02]} 35. Bb2 {[%clk 0:00:02]}  Rac8 {[%clk 0:00:03]} 36. Nxh7 {[%clk 0:00:01]}  Kg7 {[%clk 0:00:03]} 37. Qg5 {[%clk 0:00:01]}  Be7 {[%clk 0:00:02]} 38. Qf4 {[%clk 0:00:01]}  Bd6 {[%clk 0:00:03]} 39. Ne5 {[%clk 0:00:01]}  Bxe2 {[%clk 0:00:02]} 40. Ng5 {[%clk 0:00:02]}  Bd3+ {[%clk 0:00:01]} 41. Ka2 {[%clk 0:00:02]}  Rh8 {[%clk 0:00:01]} 42. Nxe6+ {[%clk 0:00:02]}  Kf6 {[%clk 0:00:01]} 43. Rxh8 {[%clk 0:00:02]}  Qxa4+ {[%clk 0:00:01]} 44. bxa4 {[%clk 0:00:02]}  Bc4+ {[%clk 0:00:02]} 45. Nxc4 {[%clk 0:00:02]}  Bxf4 {[%clk 0:00:02]} 46. Nxf4 {[%clk 0:00:03]}  dxc4 {[%clk 0:00:01]} 47. Nd5+ {[%clk 0:00:02]}  Kg7 {[%clk 0:00:02]} 48. Rh7+ {[%clk 0:00:03]}  Kxg6 {[%clk 0:00:02]} 49. Rxc7 {[%clk 0:00:04]}  c3 {[%clk 0:00:03]} 50. Nxc3 {[%clk 0:00:03]} 1-0


[Site "https://www.chess.com"]

[Event "Titled Tuesday Blitz January 17 Early 2023"]
[White "Bortnyk, Olexandr"]
[Black "Murzin, Volodar"]
[WhiteFideId "14120828"]
[BlackFideId "44155573"]
[WhiteElo "2605"]
[BlackElo "2604"]
[Result "1-0"]
[Round "07"]
[TimeControl "180+2"]
[Date "2023.01.17"]
[WhiteClock "0:01:46"]
[BlackClock "0:00:01"]

1. e4 {[%clk 0:03:00]}  c6 {[%clk 0:02:47]} 2. d4 {[%clk 0:02:57]}  d5 {[%clk 0:02:46]} 3. Nc3 {[%clk 0:02:58]}  dxe4 {[%clk 0:02:45]} 4. Nxe4 {[%clk 0:02:59]}  Bf5 {[%clk 0:02:45]} 5. Ng3 {[%clk 0:02:59]}  Bg6 {[%clk 0:02:46]} 6. h4 {[%clk 0:03:00]}  h6 {[%clk 0:02:46]} 7. Nh3 {[%clk 0:03:01]}  Nd7 {[%clk 0:02:43]} 8. Nf4 {[%clk 0:03:00]}  Bh7 {[%clk 0:02:43]} 9. Bc4 {[%clk 0:02:59]}  Ngf6 {[%clk 0:02:41]} 10. c3 {[%clk 0:02:59]}  e6 {[%clk 0:02:13]} 11. Nfh5 {[%clk 0:02:58]}  Bg6 {[%clk 0:01:55]} 12. Bf4 {[%clk 0:02:52]}  Qa5 {[%clk 0:01:26]} 13. Nxf6+ {[%clk 0:02:50]}  Nxf6 {[%clk 0:01:27]} 14. h5 {[%clk 0:02:48]}  Bh7 {[%clk 0:01:27]} 15. O-O {[%clk 0:02:45]}  Be7 {[%clk 0:01:26]} 16. Re1 {[%clk 0:02:45]}  O-O {[%clk 0:01:25]} 17. Qf3 {[%clk 0:02:41]}  Rad8 {[%clk 0:01:19]} 18. Re5 {[%clk 0:02:36]}  Qb6 {[%clk 0:01:16]} 19. b4 {[%clk 0:02:34]}  Nd5 {[%clk 0:01:14]} 20. Bd2 {[%clk 0:02:31]}  a5 {[%clk 0:00:53]} 21. a3 {[%clk 0:02:30]}  axb4 {[%clk 0:00:50]} 22. axb4 {[%clk 0:02:31]}  Ra8 {[%clk 0:00:50]} 23. Rae1 {[%clk 0:02:31]}  Ra3 {[%clk 0:00:50]} 24. Bd3 {[%clk 0:02:09]}  Bxd3 {[%clk 0:00:33]} 25. Qxd3 {[%clk 0:02:10]}  Nxb4 {[%clk 0:00:20]} 26. Qe2 {[%clk 0:02:06]}  Nd5 {[%clk 0:00:17]} 27. c4 {[%clk 0:02:07]}  Nc3 {[%clk 0:00:04]} 28. Qg4 {[%clk 0:02:01]}  Rd8 {[%clk 0:00:03]} 29. Bxh6 {[%clk 0:01:53]}  Bf6 {[%clk 0:00:04]} 30. Bxg7 {[%clk 0:01:54]}  Bxg7 {[%clk 0:00:05]} 31. h6 {[%clk 0:01:54]}  Kf8 {[%clk 0:00:06]} 32. Qxg7+ {[%clk 0:01:53]}  Ke7 {[%clk 0:00:04]} 33. Rxe6+ {[%clk 0:01:54]}  Kd7 {[%clk 0:00:05]} 34. h7 {[%clk 0:01:48]}  Kc8 {[%clk 0:00:06]} 35. Re8 {[%clk 0:01:48]}  Ne2+ {[%clk 0:00:02]} 36. R1xe2 {[%clk 0:01:45]}  Ra1+ {[%clk 0:00:01]} 37. Kh2 {[%clk 0:01:46]} 1-0


[Site "https://www.chess.com"]

[Event "Titled Tuesday Blitz January 17 Early 2023"]
[White "Terry, Renato"]
[Black "Sychev, Klementy"]
[WhiteFideId "3803457"]
[BlackFideId "4114060"]
[WhiteElo "2520"]
[BlackElo "2547"]
[Result "0-1"]
[Round "07"]
[TimeControl "180+2"]
[Date "2023.01.17"]
[WhiteClock "0:00:06"]
[BlackClock "0:00:03"]

1. Nf3 {[%clk 0:03:00]}  c5 {[%clk 0:02:58]} 2. e3 {[%clk 0:03:01]}  d5 {[%clk 0:02:57]} 3. d4 {[%clk 0:03:01]}  Nf6 {[%clk 0:02:55]} 4. dxc5 {[%clk 0:02:58]}  e6 {[%clk 0:02:50]} 5. a3 {[%clk 0:02:58]}  a5 {[%clk 0:02:48]} 6. c4 {[%clk 0:02:58]}  Bxc5 {[%clk 0:02:46]} 7. Nc3 {[%clk 0:02:58]}  O-O {[%clk 0:02:43]} 8. Be2 {[%clk 0:02:56]}  Nc6 {[%clk 0:02:27]} 9. O-O {[%clk 0:02:56]}  h6 {[%clk 0:02:27]} 10. Qc2 {[%clk 0:02:54]}  Bd7 {[%clk 0:02:20]} 11. Rd1 {[%clk 0:02:51]}  dxc4 {[%clk 0:02:11]} 12. Bxc4 {[%clk 0:02:50]}  Qe7 {[%clk 0:02:08]} 13. b3 {[%clk 0:02:38]}  Rac8 {[%clk 0:02:08]} 14. Bb2 {[%clk 0:02:38]}  Rfd8 {[%clk 0:02:08]} 15. Ne4 {[%clk 0:02:32]}  Nxe4 {[%clk 0:01:58]} 16. Qxe4 {[%clk 0:02:32]}  Be8 {[%clk 0:01:58]} 17. Qg4 {[%clk 0:02:13]}  Qf8 {[%clk 0:01:55]} 18. Rdc1 {[%clk 0:01:51]}  Bd6 {[%clk 0:01:49]} 19. h3 {[%clk 0:01:36]}  Kh8 {[%clk 0:01:48]} 20. Qh5 {[%clk 0:01:34]}  Kg8 {[%clk 0:01:46]} 21. Qg4 {[%clk 0:01:34]}  Kh8 {[%clk 0:01:46]} 22. Qe4 {[%clk 0:01:27]}  Be7 {[%clk 0:01:33]} 23. Bd3 {[%clk 0:01:08]}  f5 {[%clk 0:01:27]} 24. Qxe6 {[%clk 0:01:08]}  Rxd3 {[%clk 0:01:12]} 25. Qxc8 {[%clk 0:01:08]}  Rxb3 {[%clk 0:01:13]} 26. Rcb1 {[%clk 0:00:56]}  Kh7 {[%clk 0:00:53]} 27. a4 {[%clk 0:00:37]}  Qf7 {[%clk 0:00:28]} 28. Bd4 {[%clk 0:00:32]}  Rxb1+ {[%clk 0:00:27]} 29. Rxb1 {[%clk 0:00:32]}  Bb4 {[%clk 0:00:25]} 30. Rc1 {[%clk 0:00:20]}  Ba3 {[%clk 0:00:22]} 31. Rd1 {[%clk 0:00:19]}  Bb4 {[%clk 0:00:22]} 32. Ba1 {[%clk 0:00:18]}  Ba3 {[%clk 0:00:15]} 33. h4 {[%clk 0:00:17]}  Bb4 {[%clk 0:00:15]} 34. Bb2 {[%clk 0:00:14]}  Bf8 {[%clk 0:00:14]} 35. Bc3 {[%clk 0:00:12]}  Bb4 {[%clk 0:00:13]} 36. Ba1 {[%clk 0:00:10]}  Bf8 {[%clk 0:00:13]} 37. h5 {[%clk 0:00:07]}  Bb4 {[%clk 0:00:09]} 38. Nh4 {[%clk 0:00:07]}  Ne7 {[%clk 0:00:07]} 39. Qxb7 {[%clk 0:00:07]}  Qxh5 {[%clk 0:00:07]} 40. Nf3 {[%clk 0:00:06]}  Bc6 {[%clk 0:00:07]} 41. Qc7 {[%clk 0:00:03]}  Bxf3 {[%clk 0:00:07]} 42. gxf3 {[%clk 0:00:04]}  Qxf3 {[%clk 0:00:07]} 43. Rc1 {[%clk 0:00:04]}  Qg4+ {[%clk 0:00:04]} 44. Qg3 {[%clk 0:00:04]}  Qxg3+ {[%clk 0:00:03]} 45. fxg3 {[%clk 0:00:05]}  Bd2 {[%clk 0:00:04]} 46. Rc7 {[%clk 0:00:03]}  Bxe3+ {[%clk 0:00:03]} 47. Kg2 {[%clk 0:00:04]}  Bg5 {[%clk 0:00:02]} 48. Bc3 {[%clk 0:00:03]}  Kg6 {[%clk 0:00:01]} 49. Bxa5 {[%clk 0:00:03]}  h5 {[%clk 0:00:01]} 50. Bb4 {[%clk 0:00:03]}  Nd5 {[%clk 0:00:01]} 51. Rc6+ {[%clk 0:00:04]}  Kf7 {[%clk 0:00:02]} 52. Bc5 {[%clk 0:00:04]}  h4 {[%clk 0:00:01]} 53. a5 {[%clk 0:00:04]}  hxg3 {[%clk 0:00:01]} 54. Kxg3 {[%clk 0:00:05]}  Bf4+ {[%clk 0:00:02]} 55. Kf3 {[%clk 0:00:05]}  Bb8 {[%clk 0:00:02]} 56. a6 {[%clk 0:00:06]}  g5 {[%clk 0:00:03]} 57. a7 {[%clk 0:00:06]}  g4+ {[%clk 0:00:04]} 58. Kf2 {[%clk 0:00:05]}  Bxa7 {[%clk 0:00:04]} 59. Bxa7 {[%clk 0:00:06]}  f4 {[%clk 0:00:04]} 60. Bd4 {[%clk 0:00:06]}  f3 {[%clk 0:00:04]} 61. Kg3 {[%clk 0:00:06]}  Ne7 {[%clk 0:00:03]} 0-1


[Site "https://www.chess.com"]

[Event "Titled Tuesday Blitz January 17 Early 2023"]
[White "Papasimakopoulos, Alexandros"]
[Black "Aravindh, Chithambaram VR."]
[WhiteFideId "4244125"]
[BlackFideId "5072786"]
[WhiteElo "2401"]
[BlackElo "2633"]
[Result "0-1"]
[Round "07"]
[TimeControl "180+2"]
[Date "2023.01.17"]
[WhiteClock "0:00:22"]
[BlackClock "0:01:43"]

1. d4 {[%clk 0:03:00]}  Nf6 {[%clk 0:02:52]} 2. c4 {[%clk 0:03:01]}  c5 {[%clk 0:02:52]} 3. Nf3 {[%clk 0:02:59]}  cxd4 {[%clk 0:02:51]} 4. Nxd4 {[%clk 0:03:00]}  e5 {[%clk 0:02:49]} 5. Nf3 {[%clk 0:02:59]}  Nc6 {[%clk 0:02:48]} 6. Nc3 {[%clk 0:02:59]}  Bb4 {[%clk 0:02:48]} 7. a3 {[%clk 0:02:35]}  Bxc3+ {[%clk 0:02:46]} 8. bxc3 {[%clk 0:02:36]}  h6 {[%clk 0:02:42]} 9. e3 {[%clk 0:02:34]}  O-O {[%clk 0:02:41]} 10. Be2 {[%clk 0:02:34]}  d6 {[%clk 0:02:41]} 11. O-O {[%clk 0:02:34]}  Be6 {[%clk 0:02:41]} 12. a4 {[%clk 0:02:34]}  Qc7 {[%clk 0:02:40]} 13. Ba3 {[%clk 0:02:29]}  Rfd8 {[%clk 0:02:40]} 14. Nd2 {[%clk 0:02:29]}  Na5 {[%clk 0:02:38]} 15. Rb1 {[%clk 0:02:23]}  b6 {[%clk 0:02:37]} 16. Qc2 {[%clk 0:02:17]}  Nxc4 {[%clk 0:02:31]} 17. Nxc4 {[%clk 0:02:10]}  Bxc4 {[%clk 0:02:32]} 18. Rfc1 {[%clk 0:02:05]}  Rac8 {[%clk 0:02:30]} 19. Bf3 {[%clk 0:01:58]}  d5 {[%clk 0:02:20]} 20. h3 {[%clk 0:01:53]}  e4 {[%clk 0:02:16]} 21. Be2 {[%clk 0:01:53]}  Nd7 {[%clk 0:02:16]} 22. Be7 {[%clk 0:01:44]}  Re8 {[%clk 0:02:15]} 23. Bh4 {[%clk 0:01:44]}  Nc5 {[%clk 0:02:12]} 24. Bxc4 {[%clk 0:01:44]}  dxc4 {[%clk 0:02:13]} 25. Bg3 {[%clk 0:01:41]}  Qc6 {[%clk 0:02:13]} 26. a5 {[%clk 0:01:40]}  b5 {[%clk 0:02:13]} 27. Rd1 {[%clk 0:01:38]}  Nd3 {[%clk 0:02:12]} 28. Qa2 {[%clk 0:01:32]}  a6 {[%clk 0:02:11]} 29. Qa3 {[%clk 0:01:32]}  Re6 {[%clk 0:02:11]} 30. Rd2 {[%clk 0:01:25]}  Rd8 {[%clk 0:02:11]} 31. Kh2 {[%clk 0:01:23]}  Rd5 {[%clk 0:02:11]} 32. Rf1 {[%clk 0:01:23]}  Rf5 {[%clk 0:02:08]} 33. Re2 {[%clk 0:01:16]}  Qd5 {[%clk 0:02:00]} 34. Rd2 {[%clk 0:01:14]}  Qd8 {[%clk 0:01:55]} 35. Re2 {[%clk 0:01:09]}  Rg6 {[%clk 0:01:54]} 36. f4 {[%clk 0:00:45]}  exf3 {[%clk 0:01:49]} 37. Rxf3 {[%clk 0:00:45]}  Rxf3 {[%clk 0:01:47]} 38. gxf3 {[%clk 0:00:46]}  Qg5 {[%clk 0:01:46]} 39. Rg2 {[%clk 0:00:35]}  Ne1 {[%clk 0:01:45]} 40. h4 {[%clk 0:00:24]}  Nxf3+ {[%clk 0:01:45]} 41. Kh1 {[%clk 0:00:22]}  Qg4 {[%clk 0:01:43]} 0-1


[Site "https://www.chess.com"]

[Event "Titled Tuesday Blitz January 17 Early 2023"]
[White "Gorodetzky, David"]
[Black "Kopczynski, Michal"]
[WhiteFideId "2813416"]
[BlackFideId "1124200"]
[WhiteElo "2485"]
[BlackElo "2225"]
[Result "0-1"]
[Round "07"]
[TimeControl "180+2"]
[Date "2023.01.17"]
[WhiteClock "0:00:16"]
[BlackClock "0:00:19"]

1. b3 {[%clk 0:02:56]}  d6 {[%clk 0:02:59]} 2. Bb2 {[%clk 0:02:56]}  e5 {[%clk 0:03:00]} 3. Nf3 {[%clk 0:02:57]}  f5 {[%clk 0:03:00]} 4. g3 {[%clk 0:02:57]}  Nf6 {[%clk 0:03:00]} 5. c4 {[%clk 0:02:57]}  Be7 {[%clk 0:03:01]} 6. Nc3 {[%clk 0:02:57]}  O-O {[%clk 0:03:01]} 7. Bh3 {[%clk 0:02:53]}  Nc6 {[%clk 0:02:59]} 8. d4 {[%clk 0:02:50]}  e4 {[%clk 0:02:54]} 9. Nh4 {[%clk 0:02:50]}  f4 {[%clk 0:02:41]} 10. Bxc8 {[%clk 0:02:38]}  Qxc8 {[%clk 0:02:41]} 11. Ng2 {[%clk 0:02:29]}  f3 {[%clk 0:02:18]} 12. exf3 {[%clk 0:02:14]}  exf3 {[%clk 0:02:19]} 13. Nf4 {[%clk 0:02:14]}  Qg4 {[%clk 0:01:59]} 14. h3 {[%clk 0:02:11]}  Qf5 {[%clk 0:01:59]} 15. Qb1 {[%clk 0:01:38]}  Nxd4 {[%clk 0:01:46]} 16. Qxf5 {[%clk 0:01:38]}  Nxf5 {[%clk 0:01:47]} 17. O-O-O {[%clk 0:01:39]}  Rf7 {[%clk 0:01:30]} 18. Rd3 {[%clk 0:01:35]}  Nd7 {[%clk 0:01:24]} 19. Ncd5 {[%clk 0:01:29]}  Nc5 {[%clk 0:01:15]} 20. Rxf3 {[%clk 0:01:27]}  Bg5 {[%clk 0:01:13]} 21. h4 {[%clk 0:01:24]}  Bxf4+ {[%clk 0:01:05]} 22. Nxf4 {[%clk 0:01:20]}  Re8 {[%clk 0:01:00]} 23. Rd1 {[%clk 0:01:20]}  Nh6 {[%clk 0:00:52]} 24. Rc3 {[%clk 0:01:02]}  Ng4 {[%clk 0:00:48]} 25. Rc2 {[%clk 0:01:02]}  h6 {[%clk 0:00:39]} 26. Bd4 {[%clk 0:01:00]}  g5 {[%clk 0:00:29]} 27. hxg5 {[%clk 0:00:57]}  hxg5 {[%clk 0:00:30]} 28. Nh3 {[%clk 0:00:57]}  Ne6 {[%clk 0:00:30]} 29. Bb2 {[%clk 0:00:49]}  Rf3 {[%clk 0:00:29]} 30. Rd5 {[%clk 0:00:44]}  Kf7 {[%clk 0:00:25]} 31. Rxg5 {[%clk 0:00:43]}  Nxf2 {[%clk 0:00:23]} 32. Rg7+ {[%clk 0:00:21]}  Nxg7 {[%clk 0:00:23]} 33. Ng5+ {[%clk 0:00:21]}  Kg6 {[%clk 0:00:22]} 34. Nxf3 {[%clk 0:00:22]}  Nd3+ {[%clk 0:00:22]} 35. Kd2 {[%clk 0:00:21]}  Nxb2 {[%clk 0:00:20]} 36. Rxb2 {[%clk 0:00:21]}  Nf5 {[%clk 0:00:21]} 37. g4 {[%clk 0:00:21]}  Ng3 {[%clk 0:00:21]} 38. Kd3 {[%clk 0:00:20]}  Ne4 {[%clk 0:00:21]} 39. Rh2 {[%clk 0:00:18]}  Nc5+ {[%clk 0:00:21]} 40. Kd2 {[%clk 0:00:19]}  Ne4+ {[%clk 0:00:21]} 41. Ke3 {[%clk 0:00:16]}  Ng5+ {[%clk 0:00:19]} 0-1


[Site "https://www.chess.com"]

[Event "Titled Tuesday Blitz January 17 Early 2023"]
[White "Pultinevicius, Paulius"]
[Black "Gurevich, Dmitry"]
[WhiteFideId "12809390"]
[BlackFideId "2000407"]
[WhiteElo "2537"]
[BlackElo "2393"]
[Result "1-0"]
[Round "07"]
[TimeControl "180+2"]
[Date "2023.01.17"]
[WhiteClock "0:00:05"]
[BlackClock "0:00:02"]

1. d4 {[%clk 0:03:00]}  Nf6 {[%clk 0:02:59]} 2. Bf4 {[%clk 0:03:01]}  c5 {[%clk 0:02:56]} 3. e3 {[%clk 0:03:00]}  cxd4 {[%clk 0:02:54]} 4. exd4 {[%clk 0:03:01]}  g6 {[%clk 0:02:53]} 5. Nf3 {[%clk 0:02:54]}  Bg7 {[%clk 0:02:53]} 6. h3 {[%clk 0:02:49]}  O-O {[%clk 0:02:52]} 7. Nbd2 {[%clk 0:02:48]}  d6 {[%clk 0:02:51]} 8. Be2 {[%clk 0:02:47]}  b6 {[%clk 0:02:49]} 9. O-O {[%clk 0:02:46]}  Bb7 {[%clk 0:02:49]} 10. c3 {[%clk 0:02:46]}  Ba6 {[%clk 0:02:43]} 11. Re1 {[%clk 0:02:43]}  Bxe2 {[%clk 0:02:41]} 12. Qxe2 {[%clk 0:02:44]}  Re8 {[%clk 0:02:40]} 13. a4 {[%clk 0:02:43]}  a6 {[%clk 0:02:39]} 14. Ng5 {[%clk 0:02:01]}  h6 {[%clk 0:02:33]} 15. Nge4 {[%clk 0:01:54]}  Nbd7 {[%clk 0:02:30]} 16. Nxf6+ {[%clk 0:01:44]}  Nxf6 {[%clk 0:02:30]} 17. Qc4 {[%clk 0:01:42]}  Qc8 {[%clk 0:02:25]} 18. Qb3 {[%clk 0:01:40]}  Qb7 {[%clk 0:02:23]} 19. Re2 {[%clk 0:01:37]}  Nd5 {[%clk 0:02:05]} 20. Bg3 {[%clk 0:01:35]}  Rab8 {[%clk 0:01:48]} 21. Rae1 {[%clk 0:01:33]}  Kf8 {[%clk 0:01:46]} 22. Nc4 {[%clk 0:01:27]}  Qc6 {[%clk 0:01:41]} 23. Ne3 {[%clk 0:01:00]}  Nxe3 {[%clk 0:01:36]} 24. Rxe3 {[%clk 0:01:01]}  b5 {[%clk 0:01:33]} 25. a5 {[%clk 0:00:46]}  Qc4 {[%clk 0:01:23]} 26. Qc2 {[%clk 0:00:46]}  b4 {[%clk 0:01:10]} 27. Qe4 {[%clk 0:00:38]}  Bf6 {[%clk 0:00:59]} 28. Rf3 {[%clk 0:00:25]}  Kg7 {[%clk 0:00:54]} 29. Bf4 {[%clk 0:00:22]}  bxc3 {[%clk 0:00:49]} 30. bxc3 {[%clk 0:00:23]}  Rb5 {[%clk 0:00:48]} 31. Bxd6 {[%clk 0:00:19]}  Qd5 {[%clk 0:00:30]} 32. Qxd5 {[%clk 0:00:10]}  Rxd5 {[%clk 0:00:30]} 33. Bb4 {[%clk 0:00:11]}  e5 {[%clk 0:00:25]} 34. Rfe3 {[%clk 0:00:12]}  Re6 {[%clk 0:00:20]} 35. dxe5 {[%clk 0:00:07]}  Rexe5 {[%clk 0:00:19]} 36. Kf1 {[%clk 0:00:04]}  Rxe3 {[%clk 0:00:17]} 37. Rxe3 {[%clk 0:00:05]}  Bd8 {[%clk 0:00:15]} 38. c4 {[%clk 0:00:06]}  Rd1+ {[%clk 0:00:07]} 39. Re1 {[%clk 0:00:06]}  Rd3 {[%clk 0:00:06]} 40. Re3 {[%clk 0:00:06]}  Rd1+ {[%clk 0:00:04]} 41. Ke2 {[%clk 0:00:06]}  Rb1 {[%clk 0:00:04]} 42. Bc3+ {[%clk 0:00:05]}  Bf6 {[%clk 0:00:04]} 43. Bxf6+ {[%clk 0:00:02]}  Kxf6 {[%clk 0:00:05]} 44. Rd3 {[%clk 0:00:01]}  Rb2+ {[%clk 0:00:05]} 45. Ke3 {[%clk 0:00:02]}  Rb4 {[%clk 0:00:05]} 46. Rd6+ {[%clk 0:00:02]}  Ke5 {[%clk 0:00:05]} 47. Rd5+ {[%clk 0:00:01]}  Ke6 {[%clk 0:00:04]} 48. Kd4 {[%clk 0:00:02]}  Ra4 {[%clk 0:00:03]} 49. f4 {[%clk 0:00:02]}  h5 {[%clk 0:00:02]} 50. g4 {[%clk 0:00:02]}  h4 {[%clk 0:00:03]} 51. f5+ {[%clk 0:00:03]}  gxf5 {[%clk 0:00:03]} 52. gxf5+ {[%clk 0:00:03]}  Kf6 {[%clk 0:00:03]} 53. Rd6+ {[%clk 0:00:04]}  Kg5 {[%clk 0:00:03]} 54. Rxa6 {[%clk 0:00:05]}  Kf4 {[%clk 0:00:03]} 55. f6 {[%clk 0:00:04]}  Kg3 {[%clk 0:00:03]} 56. Ra7 {[%clk 0:00:04]}  Kxh3 {[%clk 0:00:04]} 57. Rxf7 {[%clk 0:00:04]}  Kg4 {[%clk 0:00:04]} 58. Rg7+ {[%clk 0:00:04]}  Kh5 {[%clk 0:00:03]} 59. f7 {[%clk 0:00:05]}  Rxa5 {[%clk 0:00:02]} 60. f8=Q {[%clk 0:00:05]} 1-0


[Site "https://www.chess.com"]

[Event "Titled Tuesday Blitz January 17 Early 2023"]
[White "Paravyan, David"]
[Black "Wagner, Dennis"]
[WhiteFideId "4194985"]
[BlackFideId "24650684"]
[WhiteElo "2601"]
[BlackElo "2595"]
[Result "1-0"]
[Round "07"]
[TimeControl "180+2"]
[Date "2023.01.17"]
[WhiteClock "0:00:28"]
[BlackClock "0:00:01"]

1. d4 {[%clk 0:03:00]}  Nf6 {[%clk 0:02:59]} 2. c4 {[%clk 0:03:00]}  e6 {[%clk 0:02:58]} 3. Nf3 {[%clk 0:02:59]}  d5 {[%clk 0:02:56]} 4. Nc3 {[%clk 0:03:00]}  Be7 {[%clk 0:02:50]} 5. Bf4 {[%clk 0:02:59]}  O-O {[%clk 0:02:49]} 6. e3 {[%clk 0:03:00]}  Nbd7 {[%clk 0:02:49]} 7. c5 {[%clk 0:02:59]}  Ne4 {[%clk 0:02:49]} 8. h4 {[%clk 0:02:58]}  c6 {[%clk 0:02:43]} 9. Nxe4 {[%clk 0:02:55]}  dxe4 {[%clk 0:02:43]} 10. Ng5 {[%clk 0:02:56]}  e5 {[%clk 0:02:35]} 11. dxe5 {[%clk 0:02:49]}  Qa5+ {[%clk 0:02:32]} 12. Qd2 {[%clk 0:02:48]}  Qxd2+ {[%clk 0:02:32]} 13. Kxd2 {[%clk 0:02:49]}  Nxc5 {[%clk 0:02:33]} 14. b4 {[%clk 0:02:34]}  Rd8+ {[%clk 0:02:22]} 15. Kc3 {[%clk 0:02:33]}  Nd3 {[%clk 0:02:14]} 16. Nxe4 {[%clk 0:02:31]}  Bxb4+ {[%clk 0:02:06]} 17. Kc2 {[%clk 0:02:26]}  Nxf2 {[%clk 0:01:20]} 18. Nxf2 {[%clk 0:02:22]}  Rd2+ {[%clk 0:01:20]} 19. Kb3 {[%clk 0:02:20]}  a5 {[%clk 0:01:21]} 20. a3 {[%clk 0:01:33]}  Be6+ {[%clk 0:00:07]} 21. Bc4 {[%clk 0:01:33]}  Bxc4+ {[%clk 0:00:06]} 22. Kxc4 {[%clk 0:01:34]}  b5+ {[%clk 0:00:06]} 23. Kb3 {[%clk 0:01:35]}  Be7 {[%clk 0:00:04]} 24. Ne4 {[%clk 0:01:26]}  Rxg2 {[%clk 0:00:02]} 25. Bg5 {[%clk 0:01:21]}  a4+ {[%clk 0:00:03]} 26. Kc3 {[%clk 0:01:21]}  Bf8 {[%clk 0:00:03]} 27. Nd6 {[%clk 0:00:40]}  Rb8 {[%clk 0:00:03]} 28. Bf4 {[%clk 0:00:33]}  Rd8 {[%clk 0:00:02]} 29. Rhd1 {[%clk 0:00:33]}  f6 {[%clk 0:00:01]} 30. e6 {[%clk 0:00:28]}  Be7 {[%clk 0:00:01]} 31. Nf5 {[%clk 0:00:28]} 1-0


[Site "https://www.chess.com"]